[Event "Early-Titled-Tuesday-Blitz-April-02-2024"]
[Site "Chess.com"]
[Date "2024.04.02"]
[Round "11"]
[White "newauto"]
[Black "Blackwhite017"]
[Result "1-0"]
[WhiteElo "2194"]
[BlackElo "2076"]
[TimeControl "180+1"]
[EndTime "10:09:14 PDT"]
[Termination "newauto won on time"]

1. d4 {[%clk 0:03:00.9]} 1... d5 {[%clk 0:02:59.7]} 2. Nf3 {[%clk 0:03:01.5]}
2... e6 {[%clk 0:02:58.8]} 3. Bg5 {[%clk 0:03:02.2]} 3... Be7 {[%clk 0:02:58.2]}
4. Bxe7 {[%clk 0:03:02.5]} 4... Nxe7 {[%clk 0:02:59.1]} 5. c3 {[%clk 0:03:03.3]}
5... O-O {[%clk 0:02:58.5]} 6. Nbd2 {[%clk 0:03:04.2]} 6... b6 {[%clk
0:02:58.5]} 7. e4 {[%clk 0:03:01.2]} 7... dxe4 {[%clk 0:02:52.8]} 8. Nxe4 {[%clk
0:03:01.3]} 8... a5 {[%clk 0:02:50.7]} 9. Bd3 {[%clk 0:03:01.5]} 9... Ba6 {[%clk
0:02:50.4]} 10. O-O {[%clk 0:03:01.7]} 10... Bxd3 {[%clk 0:02:50.4]} 11. Qxd3
{[%clk 0:03:02.6]} 11... Nd7 {[%clk 0:02:50.8]} 12. Rfe1 {[%clk 0:03:01.1]}
12... Nf5 {[%clk 0:02:48.5]} 13. Rad1 {[%clk 0:02:59.8]} 13... Nd6 {[%clk
0:02:45.3]} 14. Ne5 {[%clk 0:02:47.7]} 14... Nxe5 {[%clk 0:02:22.8]} 15. dxe5
{[%clk 0:02:46]} 15... Nxe4 {[%clk 0:02:23]} 16. Qxe4 {[%clk 0:02:45.2]} 16...
Qe7 {[%clk 0:02:19.7]} 17. Rd4 {[%clk 0:02:40.6]} 17... Rad8 {[%clk 0:02:17.8]}
18. Red1 {[%clk 0:02:39.9]} 18... Rxd4 {[%clk 0:02:15.1]} 19. Qxd4 {[%clk
0:02:40.3]} 19... Re8 {[%clk 0:02:09.9]} 20. f4 {[%clk 0:02:36.5]} 20... Kf8
{[%clk 0:01:56.3]} 21. h3 {[%clk 0:02:25]} 21... Rb8 {[%clk 0:01:49.9]} 22. Qe4
{[%clk 0:02:17.1]} 22... Rd8 {[%clk 0:01:42.3]} 23. Rxd8+ {[%clk 0:02:11.8]}
23... Qxd8 {[%clk 0:01:43.2]} 24. Qxh7 {[%clk 0:02:11.7]} 24... Qd1+ {[%clk
0:01:43.1]} 25. Kh2 {[%clk 0:02:11.6]} 25... Qd2 {[%clk 0:01:40]} 26. Qh4 {[%clk
0:01:57.6]} 26... Ke8 {[%clk 0:01:29.8]} 27. b4 {[%clk 0:01:44.7]} 27... Qxc3
{[%clk 0:01:21.8]} 28. bxa5 {[%clk 0:01:43]} 28... Qxa5 {[%clk 0:01:20.1]} 29.
Qh8+ {[%clk 0:01:42.4]} 29... Ke7 {[%clk 0:01:18.3]} 30. Qxg7 {[%clk 0:01:42.9]}
30... Qxa2 {[%clk 0:01:17.2]} 31. Qf6+ {[%clk 0:01:40.6]} 31... Ke8 {[%clk
0:01:14.3]} 32. h4 {[%clk 0:01:39.6]} 32... Qe2 {[%clk 0:01:03.4]} 33. Qh8+
{[%clk 0:01:33.1]} 33... Kd7 {[%clk 0:00:59.4]} 34. Qh7 {[%clk 0:01:11.8]} 34...
Ke7 {[%clk 0:00:54.5]} 35. h5 {[%clk 0:01:01.2]} 35... b5 {[%clk 0:00:48.4]} 36.
Kh3 {[%clk 0:00:54.2]} 36... b4 {[%clk 0:00:46.3]} 37. h6 {[%clk 0:00:50.8]}
37... Qh5+ {[%clk 0:00:44.8]} 38. Kg3 {[%clk 0:00:50.9]} 38... b3 {[%clk
0:00:27.8]} 39. Qb1 {[%clk 0:00:23]} 39... Qxh6 {[%clk 0:00:20.7]} 40. Qxb3
{[%clk 0:00:22.6]} 40... Qg6+ {[%clk 0:00:21.4]} 41. Kf3 {[%clk 0:00:21]} 41...
Qh5+ {[%clk 0:00:20.4]} 42. Kf2 {[%clk 0:00:20.8]} 42... Qh4+ {[%clk 0:00:19.8]}
43. g3 {[%clk 0:00:16]} 43... Qh2+ {[%clk 0:00:19.3]} 44. Kf3 {[%clk 0:00:12]}
44... Qh1+ {[%clk 0:00:19.4]} 45. Ke2 {[%clk 0:00:11.3]} 45... Qg2+ {[%clk
0:00:18.7]} 46. Kd1 {[%clk 0:00:10.7]} 46... Qf1+ {[%clk 0:00:17.9]} 47. Kc2
{[%clk 0:00:10.5]} 47... Qe2+ {[%clk 0:00:17.6]} 48. Kb1 {[%clk 0:00:10.9]}
48... Qe4+ {[%clk 0:00:16.3]} 49. Ka2 {[%clk 0:00:10.4]} 49... Qa8+ {[%clk
0:00:16.3]} 50. Kb2 {[%clk 0:00:10.2]} 50... Qg2+ {[%clk 0:00:15.7]} 51. Ka3
{[%clk 0:00:09.6]} 51... Qa8+ {[%clk 0:00:10]} 52. Kb2 {[%clk 0:00:09.6]} 52...
Qg2+ {[%clk 0:00:09.1]} 53. Kc1 {[%clk 0:00:09.2]} 53... Qf1+ {[%clk 0:00:08.6]}
54. Kb2 {[%clk 0:00:08.7]} 54... Qa6 {[%clk 0:00:07.9]} 55. Qb4+ {[%clk
0:00:08.4]} 55... Ke8 {[%clk 0:00:06.4]} 56. Qd4 {[%clk 0:00:06.4]} 56... Qb5+
{[%clk 0:00:05.3]} 57. Kc3 {[%clk 0:00:06.3]} 57... Qa5+ {[%clk 0:00:04.4]} 58.
Kd3 {[%clk 0:00:05]} 58... Qb5+ {[%clk 0:00:04.3]} 59. Ke4 {[%clk 0:00:05.3]}
59... Qe2+ {[%clk 0:00:03.9]} 60. Qe3 {[%clk 0:00:05.3]} 60... Qc2+ {[%clk
0:00:03.2]} 61. Kf3 {[%clk 0:00:05.2]} 61... Qc6+ {[%clk 0:00:02.2]} 62. Kg4
{[%clk 0:00:05.1]} 62... Qd5 {[%clk 0:00:01.4]} 63. Qc3 {[%clk 0:00:04.4]} 63...
Qd7 {[%clk 0:00:02]} 64. Qc5 {[%clk 0:00:03.8]} 64... Qe7 {[%clk 0:00:01.9]} 65.
Qc6+ {[%clk 0:00:03.9]} 65... Kf8 {[%clk 0:00:02.2]} 66. Qa8+ {[%clk 0:00:04]}
66... Kg7 {[%clk 0:00:02.5]} 67. Qe4 {[%clk 0:00:02.6]} 67... Qc5 {[%clk
0:00:02.9]} 68. Qd3 {[%clk 0:00:02.3]} 68... Qc6 {[%clk 0:00:02.8]} 69. Kg5
{[%clk 0:00:02.5]} 1-0

[Event "Early-Titled-Tuesday-Blitz-April-02-2024"]
[Site "Chess.com"]
[Date "2024.04.02"]
[Round "11"]
[White "alexrustemov"]
[Black "PavelShkapenko"]
[Result "1/2-1/2"]
[WhiteElo "2871"]
[BlackElo "2720"]
[TimeControl "180+1"]
[EndTime "10:09:19 PDT"]
[Termination "Game drawn - insufficient material"]

1. d4 {[%clk 0:03:00.2]} 1... d5 {[%clk 0:02:59.7]} 2. c4 {[%clk 0:03:00.1]}
2... dxc4 {[%clk 0:03:00.1]} 3. Nf3 {[%clk 0:02:59.5]} 3... Nf6 {[%clk
0:02:59.5]} 4. e3 {[%clk 0:02:59.3]} 4... Bg4 {[%clk 0:03:00]} 5. Bxc4 {[%clk
0:02:59.2]} 5... e6 {[%clk 0:03:00.6]} 6. h3 {[%clk 0:02:58.9]} 6... Bh5 {[%clk
0:03:00.5]} 7. O-O {[%clk 0:02:57.8]} 7... Nc6 {[%clk 0:03:00.6]} 8. Nc3 {[%clk
0:02:56.2]} 8... Bd6 {[%clk 0:03:00.5]} 9. Re1 {[%clk 0:02:56.5]} 9... O-O
{[%clk 0:02:59.9]} 10. g4 {[%clk 0:02:47.4]} 10... Nxg4 {[%clk 0:02:49.2]} 11.
hxg4 {[%clk 0:02:45.9]} 11... Bxg4 {[%clk 0:02:49.8]} 12. Kg2 {[%clk 0:02:38.4]}
12... Qf6 {[%clk 0:02:37.6]} 13. Rh1 {[%clk 0:02:27.7]} 13... Rad8 {[%clk
0:02:09.4]} 14. Be2 {[%clk 0:02:21.4]} 14... e5 {[%clk 0:01:56.7]} 15. d5 {[%clk
0:02:17.1]} 15... Ne7 {[%clk 0:01:49]} 16. e4 {[%clk 0:02:16.7]} 16... Ng6
{[%clk 0:01:36.9]} 17. Nh2 {[%clk 0:02:04.4]} 17... Nh4+ {[%clk 0:01:33]} 18.
Kg1 {[%clk 0:02:03.3]} 18... Bh3 {[%clk 0:01:28]} 19. Ng4 {[%clk 0:01:51.1]}
19... Bxg4 {[%clk 0:01:22.2]} 20. Bxg4 {[%clk 0:01:52]} 20... Bc5 {[%clk
0:01:20.1]} 21. Qe2 {[%clk 0:01:49.4]} 21... Ng6 {[%clk 0:01:12.2]} 22. Bf5
{[%clk 0:01:45]} 22... h6 {[%clk 0:01:10.6]} 23. Be3 {[%clk 0:01:35.2]} 23...
Bd4 {[%clk 0:01:05]} 24. Rh3 {[%clk 0:01:28.2]} 24... Nf4 {[%clk 0:01:03.3]} 25.
Bxf4 {[%clk 0:01:25.9]} 25... exf4 {[%clk 0:01:04.2]} 26. Bg4 {[%clk 0:01:18.7]}
26... Rfe8 {[%clk 0:00:59.4]} 27. Kh1 {[%clk 0:01:02.5]} 27... Bxc3 {[%clk
0:00:57.6]} 28. bxc3 {[%clk 0:00:55.3]} 28... Rxd5 {[%clk 0:00:57.9]} 29. Rg1
{[%clk 0:00:53.3]} 29... Rg5 {[%clk 0:00:54.3]} 30. Bd7 {[%clk 0:00:40.1]} 30...
Rxg1+ {[%clk 0:00:49.6]} 31. Kxg1 {[%clk 0:00:41]} 31... Rd8 {[%clk 0:00:49.7]}
32. Ba4 {[%clk 0:00:39]} 32... Qe5 {[%clk 0:00:40.5]} 33. Qf3 {[%clk 0:00:34]}
33... Rd6 {[%clk 0:00:36.7]} 34. Kh2 {[%clk 0:00:33.4]} 34... Rg6 {[%clk
0:00:25.4]} 35. Bb3 {[%clk 0:00:29.5]} 35... Qg5 {[%clk 0:00:25.2]} 36. Qh1
{[%clk 0:00:24.1]} 36... f3 {[%clk 0:00:22.1]} 37. Rg3 {[%clk 0:00:13.4]} 37...
Qh4+ {[%clk 0:00:22.1]} 38. Kg1 {[%clk 0:00:13.3]} 38... Rxg3+ {[%clk
0:00:20.6]} 39. fxg3 {[%clk 0:00:13.7]} 39... Qxg3+ {[%clk 0:00:21]} 40. Kf1
{[%clk 0:00:13.9]} 40... Qf4 {[%clk 0:00:20.7]} 41. Kf2 {[%clk 0:00:12.1]} 41...
Qd2+ {[%clk 0:00:19.1]} 42. Kxf3 {[%clk 0:00:10.4]} 42... Qxc3+ {[%clk
0:00:19.6]} 43. Kf4 {[%clk 0:00:09.4]} 43... c5 {[%clk 0:00:18.4]} 44. Qd1
{[%clk 0:00:03.7]} 44... c4 {[%clk 0:00:17.5]} 45. Bc2 {[%clk 0:00:03.8]} 45...
Qf6+ {[%clk 0:00:16.4]} 46. Ke3 {[%clk 0:00:03.8]} 46... Qc3+ {[%clk 0:00:14.7]}
47. Ke2 {[%clk 0:00:03.4]} 47... g6 {[%clk 0:00:13.8]} 48. a4 {[%clk 0:00:03.5]}
48... Kg7 {[%clk 0:00:14]} 49. Qd2 {[%clk 0:00:01.8]} 49... Qxd2+ {[%clk
0:00:13]} 50. Kxd2 {[%clk 0:00:02.7]} 50... Kf6 {[%clk 0:00:13.4]} 51. Kc3
{[%clk 0:00:03.1]} 51... h5 {[%clk 0:00:13.5]} 52. Kxc4 {[%clk 0:00:03]} 52...
Ke5 {[%clk 0:00:13.2]} 53. Kd3 {[%clk 0:00:03]} 53... Kf4 {[%clk 0:00:13]} 54.
Ke2 {[%clk 0:00:02.8]} 54... Kg3 {[%clk 0:00:13.1]} 55. e5 {[%clk 0:00:01.7]}
55... Kf4 {[%clk 0:00:12.7]} 56. Bb3 {[%clk 0:00:02.3]} 56... Kxe5 {[%clk
0:00:12.2]} 57. Bxf7 {[%clk 0:00:02.9]} 57... Kf6 {[%clk 0:00:12.8]} 58. Bd5
{[%clk 0:00:02.7]} 58... b6 {[%clk 0:00:13.2]} 59. Kf3 {[%clk 0:00:03.2]} 59...
g5 {[%clk 0:00:11.4]} 60. Ke4 {[%clk 0:00:03.5]} 60... g4 {[%clk 0:00:09.1]} 61.
Kf4 {[%clk 0:00:03.4]} 61... Ke7 {[%clk 0:00:09.1]} 62. Bc4 {[%clk 0:00:03.8]}
62... Kd6 {[%clk 0:00:09.6]} 63. Kg3 {[%clk 0:00:04.1]} 63... Kc5 {[%clk
0:00:10]} 64. Bb5 {[%clk 0:00:04.1]} 64... Kb4 {[%clk 0:00:09.9]} 65. Bc6 {[%clk
0:00:04.2]} 65... a6 {[%clk 0:00:09.7]} 66. Kh4 {[%clk 0:00:04.4]} 66... b5
{[%clk 0:00:10.1]} 67. axb5 {[%clk 0:00:04.1]} 67... axb5 {[%clk 0:00:10.7]} 68.
Kxh5 {[%clk 0:00:04.7]} 68... Kc5 {[%clk 0:00:11.2]} 69. Bb7 {[%clk 0:00:03.3]}
69... g3 {[%clk 0:00:10.9]} 70. Kh4 {[%clk 0:00:03.5]} 70... b4 {[%clk
0:00:11.6]} 71. Kxg3 {[%clk 0:00:03.8]} 71... Kd4 {[%clk 0:00:12.1]} 72. Kf3
{[%clk 0:00:03.1]} 72... b3 {[%clk 0:00:12.1]} 73. Be4 {[%clk 0:00:03.5]} 73...
Kc3 {[%clk 0:00:12.6]} 74. Bh7 {[%clk 0:00:04.4]} 74... Kd2 {[%clk 0:00:12.9]}
75. Kf2 {[%clk 0:00:04.6]} 75... b2 {[%clk 0:00:13.4]} 76. Bg6 {[%clk 0:00:05]}
76... Kc1 {[%clk 0:00:13.9]} 77. Ke2 {[%clk 0:00:04.8]} 77... b1=Q {[%clk
0:00:14.3]} 78. Bxb1 {[%clk 0:00:04.7]} 1/2-1/2

[Event "Early-Titled-Tuesday-Blitz-April-02-2024"]
[Site "Chess.com"]
[Date "2024.04.02"]
[Round "11"]
[White "Egor_Koshulyan"]
[Black "ViIIagra"]
[Result "1/2-1/2"]
[WhiteElo "2767"]
[BlackElo "2905"]
[TimeControl "180+1"]
[EndTime "10:09:24 PDT"]
[Termination "Game drawn by repetition"]

1. f4 {[%clk 0:03:00.6]} 1... h5 {[%clk 0:02:59.2]} 2. Nf3 {[%clk 0:03:00.2]}
2... d5 {[%clk 0:02:58.8]} 3. b3 {[%clk 0:02:57.2]} 3... c5 {[%clk 0:02:57.7]}
4. Bb2 {[%clk 0:02:57.4]} 4... Nc6 {[%clk 0:02:58.4]} 5. e3 {[%clk 0:02:57.7]}
5... Bf5 {[%clk 0:02:57.8]} 6. Be2 {[%clk 0:02:57.3]} 6... e6 {[%clk 0:02:56.9]}
7. O-O {[%clk 0:02:55.4]} 7... Nf6 {[%clk 0:02:54.5]} 8. Ne5 {[%clk 0:02:52.8]}
8... h4 {[%clk 0:02:39.4]} 9. d3 {[%clk 0:02:47.2]} 9... Nxe5 {[%clk 0:02:23.5]}
10. fxe5 {[%clk 0:02:46]} 10... Nd7 {[%clk 0:02:21.5]} 11. Nd2 {[%clk
0:02:46.5]} 11... Qc7 {[%clk 0:02:19.9]} 12. Nf3 {[%clk 0:02:45.1]} 12... g5
{[%clk 0:02:15.1]} 13. Nxg5 {[%clk 0:02:42.7]} 13... Bh6 {[%clk 0:02:15.1]} 14.
e4 {[%clk 0:02:31.5]} 14... Bxg5 {[%clk 0:01:55.8]} 15. exf5 {[%clk 0:02:31.3]}
15... O-O-O {[%clk 0:01:54.9]} 16. Bg4 {[%clk 0:02:27.2]} 16... Nxe5 {[%clk
0:01:53.7]} 17. fxe6 {[%clk 0:02:23.3]} 17... fxe6 {[%clk 0:01:54.6]} 18. Bxe6+
{[%clk 0:02:16.1]} 18... Kb8 {[%clk 0:01:54.4]} 19. Bh3 {[%clk 0:02:13.3]} 19...
d4 {[%clk 0:01:38]} 20. Bc1 {[%clk 0:02:08.1]} 20... Be7 {[%clk 0:01:20]} 21.
Bf4 {[%clk 0:02:07.9]} 21... Bd6 {[%clk 0:01:20.1]} 22. Qd2 {[%clk 0:02:04.2]}
22... Rdf8 {[%clk 0:01:11.9]} 23. Kh1 {[%clk 0:01:35.3]} 23... a6 {[%clk
0:01:02.9]} 24. Rae1 {[%clk 0:01:34.6]} 24... Ka7 {[%clk 0:01:02.8]} 25. a4
{[%clk 0:01:20.1]} 25... Rxf4 {[%clk 0:00:33.8]} 26. Rxf4 {[%clk 0:01:18.5]}
26... Nxd3 {[%clk 0:00:27.5]} 27. Qxd3 {[%clk 0:01:14]} 27... Bxf4 {[%clk
0:00:25.7]} 28. b4 {[%clk 0:00:48.4]} 28... Bxh2 {[%clk 0:00:14.3]} 29. bxc5
{[%clk 0:00:48.4]} 29... Bg3 {[%clk 0:00:15]} 30. Rb1 {[%clk 0:00:45.1]} 30...
Qxc5 {[%clk 0:00:14.6]} 31. Qe4 {[%clk 0:00:44.5]} 31... Rb8 {[%clk 0:00:11.3]}
32. Bg4 {[%clk 0:00:43]} 32... Bf2 {[%clk 0:00:07.4]} 33. Rb3 {[%clk 0:00:20.5]}
33... Qc6 {[%clk 0:00:04.8]} 34. Bf3 {[%clk 0:00:03.8]} 34... Qxe4 {[%clk
0:00:03.3]} 35. Bxe4 {[%clk 0:00:04.7]} 35... b5 {[%clk 0:00:03.7]} 36. axb5
{[%clk 0:00:04.6]} 36... axb5 {[%clk 0:00:04.6]} 37. Kh2 {[%clk 0:00:04.7]}
37... Kb6 {[%clk 0:00:05]} 38. Bd3 {[%clk 0:00:04.5]} 38... Kc5 {[%clk
0:00:05.2]} 39. Kh3 {[%clk 0:00:05.1]} 39... Re8 {[%clk 0:00:04.5]} 40. Kg4
{[%clk 0:00:05.3]} 40... b4 {[%clk 0:00:04.7]} 41. Kf3 {[%clk 0:00:05.2]} 41...
Be3 {[%clk 0:00:04.7]} 42. Be4 {[%clk 0:00:04.1]} 42... Rf8+ {[%clk 0:00:05.2]}
43. Ke2 {[%clk 0:00:04.4]} 43... Rf7 {[%clk 0:00:05.9]} 44. Rb1 {[%clk
0:00:03.8]} 44... Ra7 {[%clk 0:00:06.4]} 45. Rf1 {[%clk 0:00:03.4]} 45... Ra2
{[%clk 0:00:06.9]} 46. Rf5+ {[%clk 0:00:03.7]} 46... Kd6 {[%clk 0:00:07.6]} 47.
Rd5+ {[%clk 0:00:03.8]} 47... Kc7 {[%clk 0:00:07.8]} 48. Rh5 {[%clk 0:00:04.1]}
48... b3 {[%clk 0:00:08.1]} 49. Rb5 {[%clk 0:00:02.7]} 49... bxc2 {[%clk
0:00:06]} 50. Rc5+ {[%clk 0:00:02.5]} 50... Kd6 {[%clk 0:00:06.7]} 51. Rxc2
{[%clk 0:00:03.4]} 51... Ra3 {[%clk 0:00:06.9]} 52. Bd3 {[%clk 0:00:04]} 52...
Ke5 {[%clk 0:00:07]} 53. Rc5+ {[%clk 0:00:03.9]} 53... Kf4 {[%clk 0:00:07.1]}
54. Rf5+ {[%clk 0:00:04.1]} 54... Kg3 {[%clk 0:00:07.5]} 55. Be4 {[%clk
0:00:03.7]} 55... Ra2+ {[%clk 0:00:08.2]} 56. Kf1 {[%clk 0:00:02.2]} 56... Ra1+
{[%clk 0:00:05.8]} 57. Ke2 {[%clk 0:00:02.5]} 57... Rg1 {[%clk 0:00:06.5]} 58.
Rf3+ {[%clk 0:00:01.8]} 58... Kg4 {[%clk 0:00:06.2]} 59. Bf5+ {[%clk 0:00:02.5]}
59... Kg5 {[%clk 0:00:06.5]} 60. Bh3 {[%clk 0:00:03.4]} 60... Rb1 {[%clk
0:00:05.3]} 61. Rf5+ {[%clk 0:00:04]} 61... Kg6 {[%clk 0:00:05.5]} 62. Rc5
{[%clk 0:00:04.1]} 62... Rb2+ {[%clk 0:00:06.1]} 63. Kd3 {[%clk 0:00:04.8]}
63... Rf2 {[%clk 0:00:06.9]} 64. Rd5 {[%clk 0:00:04]} 64... Kf6 {[%clk
0:00:06.8]} 65. Ke4 {[%clk 0:00:04.2]} 65... Rf4+ {[%clk 0:00:06.6]} 66. Kd3
{[%clk 0:00:04.2]} 66... Rf2 {[%clk 0:00:07.5]} 67. Ke4 {[%clk 0:00:04.3]} 67...
Kg6 {[%clk 0:00:08]} 68. Rd6+ {[%clk 0:00:04.3]} 68... Kg5 {[%clk 0:00:08.3]}
69. Rd5+ {[%clk 0:00:04.9]} 69... Kh6 {[%clk 0:00:09]} 70. Rd6+ {[%clk
0:00:05.3]} 70... Kg7 {[%clk 0:00:09.7]} 71. Rd7+ {[%clk 0:00:05.8]} 71... Kf6
{[%clk 0:00:10.2]} 72. Rd6+ {[%clk 0:00:06.4]} 72... Ke7 {[%clk 0:00:10.9]} 73.
Rd7+ {[%clk 0:00:07]} 73... Ke8 {[%clk 0:00:11.6]} 74. Rd5 {[%clk 0:00:07.6]}
74... Rf4+ {[%clk 0:00:12]} 75. Kd3 {[%clk 0:00:07.9]} 75... Ke7 {[%clk
0:00:12.4]} 76. Re5+ {[%clk 0:00:08.4]} 76... Kd6 {[%clk 0:00:12.6]} 77. Rf5
{[%clk 0:00:08.8]} 77... Rxf5 {[%clk 0:00:09.6]} 78. Bxf5 {[%clk 0:00:09.7]}
78... Ke5 {[%clk 0:00:10.3]} 79. Bh3 {[%clk 0:00:10.4]} 79... Kf4 {[%clk
0:00:11]} 80. Bc8 {[%clk 0:00:10.6]} 80... Kg3 {[%clk 0:00:09.6]} 81. Bb7 {[%clk
0:00:11.2]} 81... Kf2 {[%clk 0:00:10.4]} 82. Bc6 {[%clk 0:00:11.1]} 82... Kg3
{[%clk 0:00:10.6]} 83. Bb7 {[%clk 0:00:11.5]} 83... Kf2 {[%clk 0:00:11.2]} 84.
Bc6 {[%clk 0:00:11.9]} 84... Kg3 {[%clk 0:00:12.1]} 85. Bb7 {[%clk 0:00:12.2]}
1/2-1/2

[Event "Early-Titled-Tuesday-Blitz-April-02-2024"]
[Site "Chess.com"]
[Date "2024.04.02"]
[Round "11"]
[White "FredddieCroderg"]
[Black "bazar-wokzal"]
[Result "1/2-1/2"]
[WhiteElo "2373"]
[BlackElo "2540"]
[TimeControl "180+1"]
[EndTime "10:09:27 PDT"]
[Termination "Game drawn by repetition"]

1. e4 {[%clk 0:02:53.8]} 1... Nc6 {[%clk 0:02:59.4]} 2. Bc4 {[%clk 0:02:46.3]}
2... Nf6 {[%clk 0:02:57.9]} 3. d3 {[%clk 0:02:45.8]} 3... d5 {[%clk 0:02:42.7]}
4. exd5 {[%clk 0:02:44.7]} 4... Nxd5 {[%clk 0:02:41.9]} 5. Nc3 {[%clk
0:02:44.5]} 5... Be6 {[%clk 0:02:38.8]} 6. Nxd5 {[%clk 0:02:42.9]} 6... Bxd5
{[%clk 0:02:38.4]} 7. Bxd5 {[%clk 0:02:41.8]} 7... Qxd5 {[%clk 0:02:37.6]} 8.
Nf3 {[%clk 0:02:42]} 8... O-O-O {[%clk 0:02:36.1]} 9. O-O {[%clk 0:02:41.5]}
9... e5 {[%clk 0:02:35.8]} 10. Be3 {[%clk 0:02:39.9]} 10... f5 {[%clk
0:02:33.9]} 11. a3 {[%clk 0:02:32.2]} 11... h6 {[%clk 0:02:24.7]} 12. b4 {[%clk
0:02:29.6]} 12... g5 {[%clk 0:02:23.2]} 13. c4 {[%clk 0:02:26]} 13... Qxd3
{[%clk 0:02:17.7]} 14. Qxd3 {[%clk 0:02:26.1]} 14... Rxd3 {[%clk 0:02:16.8]} 15.
b5 {[%clk 0:02:26.6]} 15... Na5 {[%clk 0:01:10.9]} 16. Nxe5 {[%clk 0:02:20.1]}
16... Rxe3 {[%clk 0:01:08.9]} 17. fxe3 {[%clk 0:02:17.5]} 17... Bg7 {[%clk
0:01:08.5]} 18. Rxf5 {[%clk 0:02:15.9]} 18... Re8 {[%clk 0:01:07.8]} 19. c5
{[%clk 0:01:32.2]} 19... Bxe5 {[%clk 0:01:01.8]} 20. Rd1 {[%clk 0:01:25.7]}
20... Nc4 {[%clk 0:00:56]} 21. Rd5 {[%clk 0:01:17.6]} 21... c6 {[%clk
0:00:53.7]} 22. bxc6 {[%clk 0:01:16.2]} 22... bxc6 {[%clk 0:00:53.8]} 23. Rd3
{[%clk 0:01:13.1]} 23... Nxe3 {[%clk 0:00:46.7]} 24. Rf7 {[%clk 0:01:12.1]}
24... Nd5 {[%clk 0:00:42.1]} 25. Rxa7 {[%clk 0:01:09.5]} 25... Bc7 {[%clk
0:00:32.1]} 26. Rb3 {[%clk 0:00:52.7]} 26... Re1+ {[%clk 0:00:24]} 27. Kf2
{[%clk 0:00:50.3]} 27... Rc1 {[%clk 0:00:23.8]} 28. Ra8+ {[%clk 0:00:30.4]}
28... Kd7 {[%clk 0:00:22.1]} 29. Rh8 {[%clk 0:00:30.7]} 29... Rxc5 {[%clk
0:00:19.8]} 30. Rxh6 {[%clk 0:00:29.9]} 30... Rc2+ {[%clk 0:00:19.6]} 31. Kf3
{[%clk 0:00:27.3]} 31... Bb6 {[%clk 0:00:13.1]} 32. Rh5 {[%clk 0:00:23.6]} 32...
Rf2+ {[%clk 0:00:12.3]} 33. Kg3 {[%clk 0:00:21.3]} 33... Be3 {[%clk 0:00:10.5]}
34. Rxg5 {[%clk 0:00:18.2]} 34... Rxg2+ {[%clk 0:00:09.7]} 35. Kxg2 {[%clk
0:00:18.1]} 35... Bxg5 {[%clk 0:00:10.6]} 36. a4 {[%clk 0:00:16.2]} 36... c5
{[%clk 0:00:08.8]} 37. a5 {[%clk 0:00:16]} 37... c4 {[%clk 0:00:08.8]} 38. Rb5
{[%clk 0:00:15.3]} 38... Kc6 {[%clk 0:00:09]} 39. Rb1 {[%clk 0:00:10.7]} 39...
c3 {[%clk 0:00:08]} 40. a6 {[%clk 0:00:10.1]} 40... c2 {[%clk 0:00:08.3]} 41.
Ra1 {[%clk 0:00:10.2]} 41... c1=Q {[%clk 0:00:07.7]} 42. Rxc1+ {[%clk
0:00:10.2]} 42... Bxc1 {[%clk 0:00:08.6]} 43. h4 {[%clk 0:00:10.4]} 43... Kb6
{[%clk 0:00:08.1]} 44. Kf3 {[%clk 0:00:10.5]} 44... Kxa6 {[%clk 0:00:08.2]} 45.
Kg4 {[%clk 0:00:11]} 45... Ne7 {[%clk 0:00:08.4]} 46. h5 {[%clk 0:00:11.5]}
46... Ng8 {[%clk 0:00:08.7]} 47. Kf5 {[%clk 0:00:11.4]} 47... Kb5 {[%clk
0:00:09.1]} 48. Kg6 {[%clk 0:00:11.6]} 48... Kc6 {[%clk 0:00:09.3]} 49. Kg7
{[%clk 0:00:12.5]} 49... Nh6 {[%clk 0:00:10]} 50. Kg6 {[%clk 0:00:12.9]} 50...
Kd6 {[%clk 0:00:10.6]} 51. Kg7 {[%clk 0:00:13.8]} 51... Ke6 {[%clk 0:00:11]} 52.
Kg6 {[%clk 0:00:14.7]} 52... Ke5 {[%clk 0:00:11.5]} 53. Kg7 {[%clk 0:00:15.6]}
53... Kf5 {[%clk 0:00:11.6]} 54. Kh7 {[%clk 0:00:15.1]} 54... Kg5 {[%clk
0:00:11.1]} 55. Kg7 {[%clk 0:00:16]} 55... Bb2+ {[%clk 0:00:10.5]} 56. Kf8
{[%clk 0:00:16.9]} 56... Ba3+ {[%clk 0:00:09.8]} 57. Ke8 {[%clk 0:00:16.8]}
57... Kxh5 {[%clk 0:00:09.2]} 58. Kd7 {[%clk 0:00:17.7]} 58... Kg6 {[%clk
0:00:09.6]} 59. Kc7 {[%clk 0:00:18.6]} 59... Kf6 {[%clk 0:00:09.8]} 60. Kc6
{[%clk 0:00:19.5]} 60... Ke6 {[%clk 0:00:10.1]} 61. Kb5 {[%clk 0:00:20.4]} 61...
Kd5 {[%clk 0:00:10]} 62. Ka4 {[%clk 0:00:19.6]} 62... Bc5 {[%clk 0:00:10.9]} 63.
Kb5 {[%clk 0:00:18.6]} 63... Nf5 {[%clk 0:00:10.6]} 64. Ka6 {[%clk 0:00:19.1]}
64... Nd6 {[%clk 0:00:10.5]} 65. Ka5 {[%clk 0:00:18.2]} 65... Kc4 {[%clk
0:00:10]} 66. Ka6 {[%clk 0:00:18.4]} 66... Nb5 {[%clk 0:00:08.4]} 67. Kb7 {[%clk
0:00:18.2]} 67... Kd5 {[%clk 0:00:08.3]} 68. Ka8 {[%clk 0:00:19.1]} 68... Kc6
{[%clk 0:00:07.8]} 69. Kb8 {[%clk 0:00:18.8]} 69... Bd4 {[%clk 0:00:08.1]} 70.
Ka8 {[%clk 0:00:19.1]} 70... Nc7+ {[%clk 0:00:06]} 71. Kb8 {[%clk 0:00:19.3]}
71... Bb6 {[%clk 0:00:06.5]} 72. Kc8 {[%clk 0:00:19.5]} 72... Ba7 {[%clk
0:00:07.1]} 73. Kd8 {[%clk 0:00:19.8]} 73... Nd5 {[%clk 0:00:07.8]} 74. Kc8
{[%clk 0:00:20]} 74... Ne7+ {[%clk 0:00:05]} 75. Kd8 {[%clk 0:00:20.3]} 75...
Kd6 {[%clk 0:00:05]} 76. Ke8 {[%clk 0:00:20]} 76... Ke6 {[%clk 0:00:05.2]} 77.
Kd8 {[%clk 0:00:20]} 77... Bb6+ {[%clk 0:00:05.7]} 78. Ke8 {[%clk 0:00:19.9]}
78... Nf5 {[%clk 0:00:05.5]} 79. Kf8 {[%clk 0:00:20.3]} 79... Kf6 {[%clk
0:00:05.4]} 80. Ke8 {[%clk 0:00:20.4]} 80... Ke6 {[%clk 0:00:05.9]} 81. Kf8
{[%clk 0:00:20.4]} 81... Bc5+ {[%clk 0:00:04]} 82. Ke8 {[%clk 0:00:20.6]} 82...
Bb6 {[%clk 0:00:03.9]} 1/2-1/2